[Event "USA Championship 2022"]
[Site "Saint Louis"]
[Date "2022.10.18"]
[Round "12.7"]
[White "Liang, Awonder"]
[Black "Swiercz, Dariusz"]
[Result "1-0"]
[ECO "D10"]
[WhiteElo "2608"]
[BlackElo "2652"]
[Annotator "TA"]
[PlyCount "209"]
[EventDate "2022.09.05"]
[EventType "tourn"]
[EventCountry "USA"]
[SourceTitle "playchess.com"]
[Source "ChessBase"]
[SourceQuality "1"]
[TimeControl "40/5400+30:1800+30"]

{[%evp 41,209,0,0,-2,-2,0,0,0,0,0,7,0,25,19,20,0,0,0,0,0,0,0,0,0,0,0,0,0,0,0,0,0,3,0,0,0,0,0,0,0,4,4,12,14,63,64,43,17,17,17,17,17,17,17,17,17,17,0,0,4,4,0,0,0,24,24,45,45,52,52,105,105,105,105,106,8,8,8,130,130,130,130,130,130,130,130,130,130,130,130,130,130,144,144,144,144,144,144,144,144,193,144,144,144,144,0,144,130,130,130,130,130,130,130,130,130,130,130,130,130,130,130,130,130,130,130,130,123,130,130,130,130,130,130,130,130,130,130,168,168,168,168,168,168,168,168,168,168,168,168,168,168,168,168,29973,29974,29972,29975,29974,29975,29980,29981,29980,0,29984,29985,29991,29992,29993,29994]} 1. d4 {[%emt 0:00:01]} Nf6 {[%emt 0:00:59]} 2. c4 {[%emt 0:00:02]} c6 {[%emt 0:00:57]} 3. Nc3 {[%emt 0:00:02]} d5 {[%emt 0:00:05]} 4. cxd5 {[%emt 0:00:10]} cxd5 {[%emt 0:00:02]} 5. Bf4 {[%emt 0:00:08]} Nc6 {[%emt 0:00:06]} 6. e3 {[%emt 0:00:06]} Bf5 {[%emt 0:00:06]} 7. Qb3 {[%emt 0:00:19]} Na5 {[%emt 0:00:07]} 8. Qa4+ {[%emt 0:00:09]} Bd7 {[%emt 0:00:05]} 9. Qc2 {[%emt 0:00:47]} e6 {[%emt 0:00:28]} 10. Nf3 {[%emt 0:00:15]} Rc8 {[%emt 0:00:22]} 11. Bd3 {[%emt 0:00:14]} Bb4 {[%emt 0:00:14]} 12. O-O {[%emt 0:00:23]} a6 {[%emt 0:00:20]} 13. Rac1 {[%emt 0:28:26]} Bxc3 {[%emt 0:25:58]} 14. bxc3 {[%emt 0:00:00]} Bb5 {[%emt 0:00:03]} 15. Bxb5+ {[%emt 0:00:00]} axb5 {[%emt 0:00:05]} 16. Qb1 {[%emt 0:24:32]} Qb6 {[%emt 0:18:34]} 17. Be5 {[%emt 0:00:00]} Nc4 {[%emt 0:08:03]} 18. Bxf6 {[%emt 0:00:00]} gxf6 {[%emt 0:05:12]} 19. e4 {[%emt 0:05:33]} dxe4 {[%emt 0:02:55]} 20. Qxe4 {[%emt 0:00:00]} Qc6 {[%emt 0:00:00]} 21. Qf4 {[%emt 0:00:00]} (21. d5 $5 Qxd5 22. Qxd5 $14) 21... Ke7 {[%emt 0:02:37]} 22. Rfe1 {[%emt 0:00:00]} Qd5 {[%emt 0:03:02]} 23. g3 {[%emt 0:06:50]} h5 {[%emt 0:00:00]} 24. Nh4 {[%emt 0:11:25]} Nd6 {[%emt 0:01:55]} 25. Ng2 {[%emt 0:17:14]} Ra8 {[%emt 0:03:23]} 26. Ne3 {[%emt 0:02:14]} Qe4 {[%emt 0:14:20]} 27. Qxe4 {[%emt 0:00:00]} Nxe4 {[%emt 0:00:04]} 28. f3 {[%emt 0:11:43]} Ng5 {[%emt 0:11:24]} 29. Re2 {[%emt 0:01:04]} Nxf3+ {[%emt 0:01:46]} 30. Kg2 {[%emt 0:00:00]} Ng5 {[%emt 0:01:01]} 31. Nd5+ {[%emt 0:00:00]} Kf8 {[%emt 0:00:00]} 32. Nxf6 {[%emt 0:00:00]} Kg7 {[%emt 0:05:12]} 33. Rf1 {[%emt 0:00:00]} Rh6 {[%emt 0:00:48]} 34. Ref2 {[%emt 0:00:00]} h4 {[%emt 0:00:00]} 35. gxh4 {[%emt 0:00:00]} Rxh4 {[%emt 0:00:00]} 36. Kh1 {[%emt 0:02:09]} Rh6 {[%emt 0:03:42]} 37. Nd7 {[%emt 0:00:00]} f5 {[%emt 0:00:00]} 38. Rg2 {[%emt 0:00:00]} Rh5 {[%emt 0:00:00]} 39. d5 {[%emt 0:00:00]} Kf7 {[%emt 0:00:00]} 40. Nc5 {[%emt 0:00:00]} b6 {[%emt 0:00:00]} 41. Nd3 {[%emt 0:21:15]} Kf6 {[%emt 0:17:17]} 42. Nf4 {[%emt 0:00:00]} Rh7 {[%emt 0:01:57]} (42... Rh4 $1 $11 {was preferrable.}) 43. dxe6 $14 {[%emt 0:00:00]} Rd8 {[%emt 0:08:09]} 44. e7 {[%emt 0:00:00]} Rxe7 {[%emt 0:00:00]} 45. Nh5+ {[%emt 0:00:00]} Kg6 {[%emt 0:00:00]} 46. Rfg1 {[%emt 0:00:00]} Kxh5 {[%emt 0:00:00]} 47. Rxg5+ {[%emt 0:00:00]} Kh4 {[%emt 0:00:00]} 48. Rxf5 {[%emt 0:00:00]} Rd2 {[%emt 0:00:00]} 49. Rf8 {[%emt 0:00:00]} Re5 {[%emt 0:09:59]} 50. Rh8+ {[%emt 0:00:00]} Rh5 {[%emt 0:00:00]} 51. Rxh5+ {[%emt 0:00:00]} Kxh5 {[%emt 0:00:00]} 52. Rb1 {[%emt 0:00:00]} Rd5 {[%emt 0:00:00]} 53. Kg2 {[%emt 0:00:00]} Kg4 {[%emt 0:00:00]} 54. Kf2 {[%emt 0:00:00]} Rc5 $1 {[%emt 0:00:00]} 55. Rb3 {[%emt 0:01:31]} Kf5 {[%emt 0:00:00]} (55... Re5 $1 $14) 56. Ke3 $16 {[%emt 0:00:51]} Ke6 {[%emt 0:00:56]} 57. h4 {[%emt 0:01:43]} Rc4 {[%emt 0:00:00]} 58. Kd3 {[%emt 0:00:02]} (58. Rxb5 $16 Rxc3+ 59. Kf4) 58... Rxh4 $11 {[%emt 0:00:00]} 59. Rxb5 {[%emt 0:00:02]} Kd6 {[%emt 0:00:00]} (59... Ra4 $1 $11) 60. Rxb6+ $16 {[%emt 0:00:07]} Kc5 {[%emt 0:00:00]} 61. Ra6 $1 {[%emt 0:01:07]} Rh3+ {[%emt 0:00:00]} 62. Kc2 $1 {[%emt 0:00:06]} Kc4 {[%emt 0:00:00]} 63. Ra4+ {[%emt 0:00:04]} Kb5 {[%emt 0:00:00]} 64. Rg4 {[%emt 0:00:11]} Rh1 {[%emt 0:00:00]} 65. Kb3 {[%emt 0:01:07]} Rb1+ {[%emt 0:00:00]} 66. Ka3 $1 {[%emt 0:00:02]} Kc5 {[%emt 0:00:03]} 67. Rb4 {[%emt 0:00:23]} Rc1 {[%emt 0:00:17]} 68. Kb2 {[%emt 0:00:02]} Rh1 {[%emt 0:00:10]} 69. a4 {[%emt 0:00:13]} Kc6 {[%emt 0:01:35]} 70. Rb3 {[%emt 0:00:45]} Kc5 {[%emt 0:00:33]} (70... Rh2+ $16 {was worth a try.} 71. Ka3 Rh1) 71. Rb5+ {[%emt 0:01:11]} (71. a5 $18) 71... Kc6 $16 {[%emt 0:00:32]} 72. Rb4 {[%emt 0:00:21]} Rg1 {[%emt 0:00:18]} 73. Rb5 {[%emt 0:01:32]} Rh1 $1 {[%emt 0:00:36]} 74. Rg5 {[%emt 0:00:00]} Kb6 {[%emt 0:00:30]} 75. Kb3 $1 {[%emt 0:00:00]} Rb1+ {[%emt 0:00:14]} 76. Kc4 {[%emt 0:00:00]} Rc1 {[%emt 0:00:22]} 77. Rg6+ {[%emt 0:00:00]} Ka5 {[%emt 0:00:20]} 78. Rg8 {[%emt 0:04:30]} Rh1 {[%emt 0:00:42]} 79. Ra8+ {[%emt 0:00:09]} Kb6 {[%emt 0:00:00]} 80. Rb8+ {[%emt 0:00:16]} Ka5 {[%emt 0:00:41]} 81. Rb4 {[%emt 0:00:08]} Rh4+ {[%emt 0:00:42]} 82. Kb3 {[%emt 0:00:02]} Rh1 {[%emt 0:00:15]} 83. Rb5+ {[%emt 0:00:06]} Ka6 {[%emt 0:00:01]} 84. c4 {[%emt 0:00:16]} Rb1+ {[%emt 0:00:42]} 85. Kc3 $1 {[%emt 0:00:02]} Rc1+ {[%emt 0:01:37]} 86. Kb4 {[%emt 0:00:01]} Rb1+ {[%emt 0:00:32]} 87. Kc5 {[%emt 0:00:02]} Ra1 {[%emt 0:00:24]} 88. Rb6+ {[%emt 0:03:34]} Ka7 {[%emt 0:00:07]} 89. Rb4 $1 {[%emt 0:00:08]} Rh1 {[%emt 0:00:17]} 90. Kb5 {[%emt 0:01:24]} Kb7 {[%emt 0:01:12]} 91. a5 {[%emt 0:00:19]} Rc1 {[%emt 0:00:26]} 92. a6+ {[%emt 0:01:24]} Ka7 {[%emt 0:00:36]} 93. c5 {[%emt 0:01:57]} Rh1 {[%emt 0:00:13]} 94. Rd4 {[%emt 0:01:18]} Rb1+ {[%emt 0:00:20]} 95. Kc6 {[%emt 0:00:02]} Rh1 {[%emt 0:00:10]} 96. Rd8 {[%emt 0:00:28]} Rh2 {[%emt 0:00:42]} 97. Re8 {[%emt 0:01:34]} Rc2 $2 {[%emt 0:00:59] [#]} (97... Rh1 $18 98. Re3 Rh2) 98. Kd6 $1 {[%emt 0:00:53]} Rd2+ {[%emt 0:00:29]} 99. Kc7 {[%emt 0:00:16]} Rh2 {[%emt 0:00:37] [#]} 100. c6 $1 {[%emt 0:01:53]} Rh7+ {[%emt 0:00:32]} 101. Kd6 {[%emt 0:00:18]} Rh6+ {[%emt 0:00:27]} 102. Kd7 $2 {[%emt 0:00:07]} (102. Re6 {mates} Rh8 103. c7 Kxa6 104. Kc6 Ka5 105. Re2 Kb4 106. Rc2 Ka5 107. Kb7) 102... Rh7+ $2 {[%emt 0:00:29][%mdl 8192]} (102... Kxa6 $11 103. c7 Rh7+ 104. Re7 Rh8 105. c8=Q+ Rxc8 106. Kxc8 Kb6 107. Rc7 Kb5) 103. Re7 {[%emt 0:00:13]} Rh1 {[%emt 0:00:16]} 104. c7 {[%emt 0:00:05]} Rd1+ {[%emt 0:00:03]} 105. Ke8 {[%emt 0:00:06]} 1-0

[Event "USA Championship 2022"]
[Site "Saint Louis"]
[Date "2022.10.19"]
[Round "13.1"]
[White "Robson, Ray"]
[Black "Xiong, Jeffery"]
[Result "1/2-1/2"]
[ECO "D27"]
[WhiteElo "2690"]
[BlackElo "2690"]
[Annotator "TA"]
[PlyCount "144"]
[EventDate "2022.09.05"]
[EventType "tourn"]
[EventCountry "USA"]
[SourceTitle "playchess.com"]
[Source "ChessBase"]
[SourceQuality "1"]
[TimeControl "40/5400+30:1800+30"]

{[%evp 16,144,32,30,23,20,23,17,27,19,13,22,13,17,26,19,9,5,35,21,29,8,24,15,18,9,12,24,15,14,25,17,23,0,0,0,0,0,0,0,0,-14,0,-4,0,0,0,0,0,0,0,3,15,9,85,85,79,82,94,87,86,-74,-83,-85,-86,-67,-53,-69,-62,-133,-120,-148,-141,-141,-141,-150,-152,-130,-130,-130,-95,-137,-111,-132,-72,-139,-124,-155,-80,-80,-80,-80,-80,-80,-80,-158,-133,-121,0,0,0,0,0,0,0,0,0,0,0,0,0,0,0,0,0,0,0,0,0,0,0,0,0,0,0,0,0,0,0,0,0]} 1. d4 {[%emt 0:04:13]} d5 {[%emt 0:00:21]} 2. c4 {[%emt 0:00:17]} dxc4 {[%emt 0:00:17]} 3. Nf3 {[%emt 0:00:28]} Nf6 {[%emt 0:00:30]} 4. e3 {[%emt 0:00:25]} e6 {[%emt 0:00:10]} 5. Bxc4 {[%emt 0:00:27]} c5 {[%emt 0:00:10]} 6. O-O {[%emt 0:00:29]} a6 {[%emt 0:00:15]} 7. b3 {[%emt 0:00:53]} cxd4 {[%emt 0:04:19]} 8. Nxd4 {[%emt 0:01:02]} Be7 {[%emt 0:00:34]} 9. Bb2 {[%emt 0:00:42]} O-O {[%emt 0:00:12] D27: Queen's Gambit Accepted: Classical main line: 7 e4!? and 7 a4.} 10. Be2 {[%emt 0:00:56]} Bd7 {[%emt 0:01:40] 10...b5 is the hot move.} 11. Nd2 {[%emt 0:01:09]} Nc6 {[%emt 0:00:11]} 12. N4f3 {[%emt 0:01:21]} b5 {[%emt 0:08:03]} 13. Rc1 {[%emt 0:03:03]} Rc8 {[%emt 0:04:17]} 14. a3 {[%emt 0:02:13]} Qb6 {[%emt 0:02:36]} (14... Nd5 {is interesting.} 15. Bd3 Qb6 16. Qe2 Rfd8) 15. Bd3 {[%emt 0:01:22]} Rfd8 {[%emt 0:02:03]} 16. Qe2 {[%emt 0:01:01] [#]} Be8 $146 {[%emt 0:20:57]} ({Predecessor:} 16... Nd5 17. Rfd1 Bf6 18. Bxf6 Nxf6 19. Ne4 Nxe4 20. Bxe4 Ne7 21. Rxc8 Bxc8 22. b4 Rxd1+ 23. Qxd1 h6 24. h3 {½-½ (24) Repp,H (2500)-Vinchev,S (2507) GER email 2017}) 17. h3 {[%emt 0:04:16]} Nd7 {[%emt 0:01:43]} 18. b4 {[%emt 0:12:28]} e5 {[%emt 0:04:48]} 19. Bf5 {[%emt 0:15:09][%cal Of3e5]} f6 $1 {[%emt 0:00:40]} 20. Ne4 {[%emt 0:04:00]} Ncb8 {[%emt 0:05:51]} 21. Nc3 {[%emt 0:03:46]} Bf7 {[%emt 0:00:28] Against Nd5} 22. Rfd1 {[%emt 0:01:09]} g6 {[%emt 0:05:54]} 23. Be4 {[%emt 0:03:44]} Qa7 {[%emt 0:00:04]} 24. Nd5 {[%emt 0:03:24]} Nb6 $1 {[%emt 0:00:02]} 25. Rc7 {[%emt 0:07:14]} Rxc7 {[%emt 0:00:04]} 26. Nxe7+ {[%emt 0:00:06][%mdl 64] Discovered Attack, Remove Defender} Rxe7 {[%emt 0:00:08]} 27. Rxd8+ {[%emt 0:00:04]} Kg7 {[%emt 0:00:26] Hoping for ...N8d7.} 28. Rd1 {[%emt 0:08:26]} Qc7 {[%emt 0:06:08]} 29. g4 {[%emt 0:02:06]} h6 {[%emt 0:00:03]} 30. Rc1 {[%emt 0:05:24]} Qd6 {[%emt 0:00:02]} 31. Rd1 {[%emt 0:00:42]} Qc7 {[%emt 0:04:23]} 32. Rc1 {[%emt 0:00:28]} Qd6 {[%emt 0:04:09]} 33. Qc2 {[%emt 0:00:43]} Nc4 {[%emt 0:05:11]} 34. Rd1 {[%emt 0:02:38]} Qc7 {[%emt 0:08:11] [#]} (34... Qb6 $1 $11 {remains equal.}) 35. Nh4 $1 $16 {[%emt 0:01:08][%cal Re4g6]} Nxb2 {[%emt 0:05:59]} 36. Qxb2 {[%emt 0:00:02]} Rd7 {[%emt 0:00:06]} 37. Rc1 {[%emt 0:01:22]} Qd8 {[%emt 0:00:02]} 38. Qb1 $2 {[%emt 0:01:43] White is more active.} (38. Qa1 $16 {and life is bright.}) 38... f5 $1 $17 {[%emt 0:00:55]} 39. Bxf5 {[%emt 0:04:20]} Qxh4 {[%emt 0:02:03]} ({Much worse is} 39... gxf5 $6 40. Nxf5+ Kh7 41. Nh4+ Kh8 42. Qf5 $11) 40. Bxd7 {[%emt 0:00:14]} Nxd7 {[%emt 0:00:07][%cal Bb8d7,Bd7b6,Bb6c4][%mdl 32]} 41. Kg2 {[%emt 0:22:12]} h5 {[%emt 0:02:31] aiming for ...Nf6.} 42. f3 {[%emt 0:07:26] [#]} ({White should play} 42. Qe4 $1 $15) 42... Nb6 $1 $36 {[%emt 0:11:51][%mdl 2048] Black is really pushing.} 43. Qe4 {[%emt 0:01:06]} Nc4 {[%emt 0:00:03]} 44. Rd1 {[%emt 0:00:45] Inhibits Bd5.} Kh6 {[%emt 0:09:00]} 45. Qd3 {[%emt 0:00:29]} Qg5 {[%emt 0:02:30]} 46. Re1 {[%emt 0:00:39]} Be6 {[%emt 0:00:38]} 47. Kg3 {[%emt 0:00:51]} Kg7 {[%emt 0:03:58]} 48. Re2 {[%emt 0:02:11]} Qe7 {[%emt 0:00:35]} 49. Re1 {[%emt 0:00:37]} Qc7 {[%emt 0:01:01]} (49... h4+ $142 50. Kf2 Bf7) 50. Kg2 {[%emt 0:00:42]} (50. f4 $142) 50... h4 {[%emt 0:01:15]} 51. Rd1 {[%emt 0:00:56]} e4 {[%emt 0:03:52]} (51... a5 $142 52. Rc1 Qa7) 52. Qc3+ {[%emt 0:01:14]} Qe5 {[%emt 0:00:17]} 53. Qxe5+ {[%emt 0:00:33]} Nxe5 {[%emt 0:00:01]} 54. fxe4 {[%emt 0:01:00]} Nc4 {[%emt 0:00:02][%csl LRa3,LRe3]} 55. Rd8 {[%emt 0:01:57]} ({Better is} 55. Kf3) 55... Nxa3 {[%emt 0:02:12]} 56. Ra8 {[%emt 0:00:18]} Kf6 {[%emt 0:03:43]} (56... Nc2 $17 57. Rxa6 Bc4) 57. Rxa6 $11 {[%emt 0:00:14] The position is equal.} Nc4 {[%emt 0:00:01]} 58. Rc6 {[%emt 0:01:00]} g5 {[%emt 0:00:39]} 59. Kf2 {[%emt 0:00:37]} Ne5 {[%emt 0:01:10]} 60. Rb6 {[%emt 0:00:13]} Nd3+ {[%emt 0:00:01]} 61. Kf3 {[%emt 0:00:21]} Nxb4 {[%emt 0:00:45]} 62. e5+ {[%emt 0:00:59]} Ke7 {[%emt 0:00:02]} 63. Rxb5 {[%emt 0:00:10]} Nd3 {[%emt 0:00:59]} 64. Ra5 {[%emt 0:00:35]} Kf7 {[%emt 0:00:41]} 65. Ra7+ {[%emt 0:00:32]} Kf8 {[%emt 0:00:04]} 66. Ra8+ {[%emt 0:00:28]} Kf7 {[%emt 0:00:01] Threatens to win with ...Bd5+.} 67. Ra7+ {[%emt 0:00:06]} Kf8 {[%emt 0:00:30]} 68. Ra8+ {[%emt 0:00:27]} Ke7 {[%emt 0:01:11] White must now prevent ...Bd5+.} 69. Ra7+ {[%emt 0:00:23]} Ke8 {[%emt 0:00:42]} 70. Ra8+ {[%emt 0:00:43]} Ke7 {[%emt 0:00:02] Strongly threatening ...Bd5+.} 71. Ra7+ {[%emt 0:00:08]} Ke8 {[%emt 0:00:01]} 72. Ra8+ {[%emt 0:00:15]} Ke7 {[%emt 0:01:10] Black had all chances to win.  Weighted Error Value: White=0.15 (very precise) /Black=0.11 (very precise)} 1/2-1/2

[Event "USA Championship 2022"]
[Site "Saint Louis"]
[Date "2022.10.19"]
[Round "13.2"]
[White "Caruana, Fabiano"]
[Black "Aronian, Levon"]
[Result "1/2-1/2"]
[ECO "C67"]
[WhiteElo "2763"]
[BlackElo "2755"]
[Annotator "TA"]
[PlyCount "67"]
[EventDate "2022.09.05"]
[EventType "tourn"]
[EventCountry "USA"]
[SourceTitle "playchess.com"]
[Source "ChessBase"]
[SourceQuality "1"]
[TimeControl "40/5400+30:1800+30"]

{[%evp 18,67,15,17,20,17,14,25,21,17,20,10,12,6,6,11,7,0,5,8,6,0,0,0,13,0,0,0,0,0,0,0,0,0,0,0,0,0,0,0,0,0,0,0,0,0,0,0,0,0,0,0]} 1. e4 {[%emt 0:00:01]} e5 {[%emt 0:00:06]} 2. Nf3 {[%emt 0:00:03]} Nc6 {[%emt 0:00:07]} 3. Bb5 {[%emt 0:00:04]} Nf6 {[%emt 0:00:11]} 4. O-O {[%emt 0:00:07][%cal Bh1f1,Bf1e1,Be1e5][%mdl 32]} Nxe4 {[%emt 0:00:06]} 5. Re1 {[%emt 0:00:06]} Nd6 {[%emt 0:00:08]} 6. Nxe5 {[%emt 0:00:05]} Be7 {[%emt 0:00:07]} 7. Bf1 {[%emt 0:00:07]} Nxe5 {[%emt 0:00:17]} 8. Rxe5 {[%emt 0:00:06]} O-O {[%emt 0:00:08]} 9. d4 {[%emt 0:00:05]} (9. Nc3 Ne8 10. Nd5 Bd6 11. Re1 c6 12. Ne3 Be7 13. Nf5 Bf6 14. Qe2 Nc7 15. Nd6 Ne6 16. c3 Qc7 17. Nxc8 Raxc8 18. d4 d5 19. Qg4 Rce8 20. Bd2 g6 21. a4 a5 22. Bd3 h5 23. Qg3 Qxg3 24. hxg3 b6 25. Rab1 Kg7 26. b4 axb4 27. Rxb4 Bd8 28. Be3 Bc7 29. Rc1 Ra8 30. Bc2 Ra5 31. c4 c5 32. dxc5 bxc5 33. Rbb1 dxc4 34. Bd1 Rd8 35. Rxc4 Be5 36. Bf3 Bd4 37. Bc1 Rd6 38. Kf1 Raa6 {Caruana,F (2776)-Aronian,L (2775) Saint Louis 2022 ½-½ (69)}) 9... Bf6 {[%emt 0:00:16]} 10. Re1 {[%emt 0:00:06]} Re8 {[%emt 0:00:07] C67: Ruy Lopez: Berlin Defence: 4 0-0 Nxe4.} 11. c3 {[%emt 0:00:12]} Rxe1 {[%emt 0:00:30]} 12. Qxe1 {[%emt 0:00:05]} Ne8 {[%emt 0:00:05][%cal Bd6e8,Be8g7,Bg7f5][%mdl 32] White has an edge.} 13. Bf4 {[%emt 0:00:06] The position is equal.} d5 {[%emt 0:00:17]} 14. Bd3 {[%emt 0:00:07]} g6 {[%emt 0:00:38]} 15. Nd2 {[%emt 0:00:05][%cal Bb1d2,Bd2f3,Bf3e5][%mdl 32]} Ng7 {[%emt 0:00:18]} 16. Qe2 {[%emt 0:00:38]} c6 {[%emt 0:00:39]} 17. Re1 {[%emt 0:00:30]} Bf5 {[%emt 0:00:25]} 18. Bxf5 {[%emt 0:00:05]} Nxf5 {[%emt 0:00:05]} 19. Nf3 {[%emt 0:00:05]} Ng7 {[%emt 0:00:37]} 20. Be5 {[%emt 0:00:07]} Ne6 {[%emt 0:00:26]} 21. Bxf6 {[%emt 0:00:05]} Qxf6 {[%emt 0:00:04]} 22. Ne5 {[%emt 0:00:06]} Re8 {[%emt 0:00:25]} 23. Ng4 {[%emt 0:00:05]} Qd8 {[%emt 0:00:18]} 24. Qe5 {[%emt 0:00:11] aiming for Nf6+.} Ng7 {[%emt 0:00:13]} 25. Qxe8+ {[%emt 0:00:05]} ({Don't go for} 25. Nh6+ $2 Kf8 26. Nxf7 Rxe5 $19) 25... Nxe8 {[%emt 0:00:06]} 26. Rxe8+ {[%emt 0:00:03][%mdl 64] [#] Remove Defender} Qxe8 {[%emt 0:00:06][%cal Re8e1]} 27. Nf6+ {[%emt 0:00:04]} Kf8 {[%emt 0:00:06][%cal Re8e1]} 28. Nxe8 {[%emt 0:00:03]} Kxe8 $11 {[%emt 0:00:05][%mdl 4096] Endgame KP-KP} 29. f4 {[%emt 0:00:03]} f5 {[%emt 0:00:23]} 30. Kf2 {[%emt 0:00:05] [#]} Kf7 $5 $146 {[%emt 0:00:16][%mdl 8] New and interesting.} ({Predecessor:} 30... a5 31. a4 Ke7 {½-½ (31) Ding,L (2799)-Ma,Q (2645) Hangzhou 2022}) 31. Kg1 {[%emt 0:00:08]} Ke8 {[%emt 0:00:15]} 32. Kf2 {[%emt 0:00:04]} Kf7 {[%emt 0:00:04]} 33. Kg1 {[%emt 0:00:02]} Ke8 {[%emt 0:00:30]} 34. Kf2 {An interesting draw.  Weighted Error Value: White=0.02 (flawless) /Black=0.01 (flawless)} 1/2-1/2

[Event "USA Championship 2022"]
[Site "Saint Louis"]
[Date "2022.10.19"]
[Round "13.3"]
[White "Swiercz, Dariusz"]
[Black "Yoo, Christopher Woojin"]
[Result "0-1"]
[ECO "C78"]
[WhiteElo "2652"]
[BlackElo "2563"]
[Annotator "TA"]
[PlyCount "66"]
[EventDate "2022.09.05"]
[EventType "tourn"]
[EventCountry "USA"]
[SourceTitle "playchess.com"]
[Source "ChessBase"]
[SourceQuality "1"]
[TimeControl "40/5400+30:1800+30"]

{[%evp 17,66,35,39,0,0,0,13,0,0,-2,-11,-5,-16,-27,-14,-25,-8,-51,-50,-52,-53,-73,-66,-133,-135,-148,-149,-141,-127,-233,-225,-218,-189,-225,-224,-226,-239,-236,-242,-266,-258,-244,-214,-765,-764,-947,-743,-29983,-29984,-29987,-29988]} 1. e4 {[%emt 0:00:03]} e5 {[%emt 0:05:52]} 2. Nf3 {[%emt 0:00:06]} Nc6 {[%emt 0:00:24]} 3. Bb5 {[%emt 0:00:05]} a6 {[%emt 0:00:09]} 4. Ba4 {[%emt 0:00:04]} Nf6 {[%emt 0:00:07]} 5. O-O {[%emt 0:00:34]} Bc5 {[%emt 0:00:30]} 6. c3 {[%emt 0:05:27]} b5 {[%emt 0:00:04]} 7. Bb3 {[%emt 0:00:04]} d6 {[%emt 0:00:06]} 8. a4 {[%emt 0:06:23]} Rb8 {[%emt 0:00:32]} 9. d4 {[%emt 0:02:51]} Bb6 {[%emt 0:00:06]} 10. a5 {[%emt 0:00:48] C78: Ruy Lopez: Archangelsk and Möller Defences.} Ba7 {[%emt 0:00:15]} (10... Nxa5 11. Rxa5 Bxa5 12. dxe5) (10... Bxa5 $2 11. d5 $18) 11. h3 {[%emt 0:01:03]} Bb7 {[%emt 0:00:12]} 12. Re1 {[%emt 0:01:17] The position is equal.} O-O {[%emt 0:00:51]} 13. Be3 {[%emt 0:02:37]} exd4 {[%emt 0:00:12]} (13... Nxe4 14. d5 $16) 14. cxd4 {[%emt 0:00:17] Strongly threatening d5.} Nb4 {[%emt 0:00:52]} (14... Nxe4 $2 15. d5 $16) 15. Nc3 {[%emt 0:28:26]} Bxe4 {[%emt 0:08:47]} ({Don't do} 15... Nxe4 16. Nxe4 Bxe4 17. Bd2 Bxf3 18. Qxf3 $16) 16. Nxe4 {[%emt 0:22:27]} (16. Bg5 $5 {[%cal Rc3e4]} Bg6 17. Nh4 $11) 16... Nxe4 {[%emt 0:00:04]} 17. d5 {[%emt 0:00:03]} Bc5 {[%emt 0:05:00]} 18. Bd4 {[%emt 0:02:39]} Re8 {[%emt 0:04:45][%cal Bf8e8,Be8e7,Be7e4][%mdl 32]} 19. Re3 {[%emt 0:00:30]} Qd7 {[%emt 0:07:37] [#]} 20. Rc1 $146 {[%emt 0:15:33]} ({White should play} 20. Qe1 $15 Nf6 21. Bxf6 gxf6 22. Nd4) ({Predecessor:} 20. Qe1 Nf6 21. Qd2 Rxe3 22. Bxe3 Ne4 23. Qd1 Bxe3 24. fxe3 Nc5 25. Ra3 Qe7 26. Qd2 {0-1 (33) Kevlishvili,R (2451)-Firouzja,A (2669) Reykjavik 2019}) 20... Re7 $17 {[%emt 0:13:29]} 21. Qe2 {[%emt 0:01:17]} Rbe8 {[%emt 0:00:07][%cal Oe4g3]} 22. Re1 {[%emt 0:00:51]} Kf8 {[%emt 0:00:47]} 23. Bc2 {[%emt 0:06:41]} (23. Qd1 $17) 23... f5 {[%emt 0:02:30] Active counter play!} 24. Bxe4 {[%emt 0:01:38]} Rxe4 {[%emt 0:00:17]} 25. Bxc5 {[%emt 0:00:36]} dxc5 {[%emt 0:00:20]} 26. Ng5 {[%emt 0:00:04]} Rxe3 {[%emt 0:00:06]} 27. fxe3 {[%emt 0:00:03]} Kg8 {[%emt 0:04:28]} ({Weaker is} 27... Qxd5 28. Rd1 Qb3 29. Nxh7+ Kg8 30. Qh5 $17) 28. Ne6 {[%emt 0:00:41]} Nxd5 {[%emt 0:00:56]} ({But not} 28... Qxd5 29. Nxc7 Qf7 30. Nxe8 Qxe8 31. Qd2 $16) 29. Nxc5 {[%emt 0:00:12]} Qc6 {[%emt 0:02:29]} 30. Qc2 $2 {[%emt 0:00:16]} (30. Rc1) 30... Nxe3 $19 {[%emt 0:00:37]} 31. Qb3+ {[%emt 0:01:48]} Kf8 {[%emt 0:00:48][%csl Ge3][%cal Rc6g2] [#]} 32. Rxe3 {[%emt 0:00:33]} Qxc5 {[%emt 0:00:04]} 33. Qa3 {[%emt 0:00:27]} b4 {[%emt 0:00:06] Weighted Error Value: White=0.77/Black=0.16 (very precise)} 0-1

[Event "USA Championship 2022"]
[Site "Saint Louis"]
[Date "2022.10.19"]
[Round "13.4"]
[White "Dominguez Perez, Leinier"]
[Black "Shankland, Sam"]
[Result "1/2-1/2"]
[WhiteElo "2747"]
[BlackElo "2712"]
[Annotator "TA"]
[PlyCount "19"]
[EventDate "2022.09.05"]
[EventType "tourn"]
[EventCountry "USA"]
[SourceTitle "playchess.com"]
[Source "ChessBase"]
[SourceQuality "1"]
[TimeControl "40/5400+30:1800+30"]

{[%evp 18,19,18,0]} 1. e4 {[%emt 0:03:43]} c5 {[%emt 0:00:12]} 2. Nf3 {[%emt 0:00:05]} d6 {[%emt 0:00:04]} 3. d4 {[%emt 0:00:05]} cxd4 {[%emt 0:00:03]} 4. Nxd4 {[%emt 0:00:07]} Nf6 {[%emt 0:00:04]} 5. Nc3 {[%emt 0:00:07]} a6 {[%emt 0:00:02]} 6. Be3 {[%emt 0:00:08]} Ng4 {[%emt 0:00:06]} 7. Bc1 {[%emt 0:01:33]} Nf6 {[%emt 0:00:03]} 8. Be3 {[%emt 0:00:43]} Ng4 {[%emt 0:00:13] [#]} 9. Bc1 $146 {[%emt 0:00:13]} ({Predecessor:} 9. Bg5 h6 10. Bh4 g5 11. Bg3 Bg7 12. h3 Ne5 13. Nf5 Bxf5 14. exf5 Nbc6 15. Nd5 e6 16. fxe6 fxe6 17. Ne3 Qa5+ 18. c3 Nf3+ 19. gxf3 Bxc3+ 20. bxc3 Qxc3+ 21. Qd2 Qxa1+ {½-½ (55) Dominguez Perez,L (2745)-Firouzja,A (2778) Saint Louis 2022}) 9... Nf6 {[%emt 0:01:13]} 10. Be3 {[%emt 0:00:48] 10.Qd2 is setting a new trend.} 1/2-1/2